[Event "2026 European Womens Championship"]
[Site "Batumi, GE"]
[Date "2026.05.28"]
[Round "4"]
[White "Sieber, Fiona"]
[Black "Brunello, Marina"]
[Result "1-0"]
[Board "26"]
[TimeControl "5400+30"]
[WhiteFideId "12902373"]
[BlackFideId "822590"]
[WhiteElo "2224"]
[BlackElo "2346"]
[WhiteTitle "WGM"]
[BlackTitle "IM"]
[WhiteClock "0:19:06"]
[BlackClock "0:21:44"]
[Variant "Standard"]

1. e4 {[%clk 1:30:58]}  c5 {[%clk 1:30:57]} 2. Nf3 {[%clk 1:31:24]}  d6 {[%clk 1:31:24]} 3. Bb5+ {[%clk 1:31:50]}  Nd7 {[%clk 1:31:49]}
4. d4 {[%clk 1:32:15]}  cxd4 {[%clk 1:30:54]} 5. Nxd4 {[%clk 1:32:04]}  a6 {[%clk 1:30:18]} 6. Bd3 {[%clk 1:32:23]}  e5 {[%clk 1:29:51]}
7. Nf5 {[%clk 1:32:18]}  Nc5 {[%clk 1:29:21]} 8. Nc3 {[%clk 1:31:47]}  h6 {[%clk 1:23:03]} 9. O-O {[%clk 1:20:01]}  Nf6 {[%clk 1:23:02]}
10. Re1 {[%clk 1:18:21]}  Be6 {[%clk 1:17:21]} 11. b4 {[%clk 1:12:33]}  Nxd3 {[%clk 1:09:38]} 12. Qxd3 {[%clk 1:12:08]}  Bxf5 {[%clk 1:09:07]}
13. exf5 {[%clk 1:12:33]}  Be7 {[%clk 1:09:30]} 14. Nd5 {[%clk 1:06:22]}  Nxd5 {[%clk 0:59:01]} 15. Qxd5 {[%clk 1:06:31]}  Qc7 {[%clk 0:59:25]}
16. c4 {[%clk 1:04:44]}  O-O {[%clk 0:59:45]} 17. Be3 {[%clk 1:04:12]}  Rfc8 {[%clk 0:59:03]} 18. Rac1 {[%clk 1:04:02]}  Qc6 {[%clk 0:56:48]}
19. a4 {[%clk 0:52:56]}  Qxa4 {[%clk 0:54:08]} 20. Qxb7 {[%clk 0:52:55]}  Bf6 {[%clk 0:52:35]} 21. Ra1 {[%clk 0:49:41]}  Qc2 {[%clk 0:51:21]}
22. b5 {[%clk 0:45:32]}  a5 {[%clk 0:27:31]} 23. b6 {[%clk 0:39:31]}  Rab8 {[%clk 0:26:20]} 24. Qd7 {[%clk 0:34:42]}  Rd8 {[%clk 0:23:34]}
25. Qb5 {[%clk 0:34:38]}  Bg5 {[%clk 0:23:40]} 26. Bxg5 {[%clk 0:27:30]}  hxg5 {[%clk 0:24:05]} 27. Rxa5 {[%clk 0:26:56]}  Qxf5 {[%clk 0:23:02]}
28. Ra7 {[%clk 0:24:24]}  Qe6 {[%clk 0:20:42]} 29. Rb1 {[%clk 0:22:38]}  Kh7 {[%clk 0:14:22]} 30. Rc7 {[%clk 0:20:59]}  Rdc8 {[%clk 0:12:52]}
31. Rxc8 {[%clk 0:19:29]}  Qxc8 {[%clk 0:13:14]} 32. b7 {[%clk 0:16:14]}  Qc5 {[%clk 0:09:43]} 33. Qxc5 {[%clk 0:16:04]}  dxc5 {[%clk 0:10:09]}
34. g4 {[%clk 0:14:31]}  g6 {[%clk 0:09:15]} 35. Rb5 {[%clk 0:12:11]}  Kg7 {[%clk 0:09:02]} 36. Kg2 {[%clk 0:11:28]}  e4 {[%clk 0:09:20]}
37. Kf1 {[%clk 0:11:36]}  f5 {[%clk 0:09:17]} 38. gxf5 {[%clk 0:07:58]}  gxf5 {[%clk 0:09:43]} 39. Rxc5 {[%clk 0:08:25]}  Rxb7 {[%clk 0:10:07]}
40. Rxf5 {[%clk 0:08:51]}  Rb1+ {[%clk 0:09:41]} 41. Ke2 {[%clk 0:08:33]}  Rc1 {[%clk 0:09:52]} 42. Rxg5+ {[%clk 0:08:43]}  Kf6 {[%clk 0:09:57]}
43. Rc5 {[%clk 0:09:09]}  Rc3 {[%clk 0:09:55]} 44. h4 {[%clk 0:06:13]}  Rh3 {[%clk 0:06:02]} 45. h5 {[%clk 0:05:22]}  Ke6 {[%clk 0:05:26]}
46. h6 {[%clk 0:04:13]}  Kd6 {[%clk 0:05:32]} 47. Ra5 {[%clk 0:03:15]}  Ke6 {[%clk 0:05:54]} 48. Kf1 {[%clk 0:28:04]}  Kf7 {[%clk 0:35:28]}
49. Ra6 {[%clk 0:26:40]}  Rc3 {[%clk 0:30:44]} 50. Rc6 {[%clk 0:25:12]}  Rh3 {[%clk 0:31:06]} 51. Ke2 {[%clk 0:25:01]}  Rc3 {[%clk 0:30:49]}
52. h7 {[%clk 0:22:41]}  Kg7 {[%clk 0:31:13]} 53. Rc7+ {[%clk 0:22:28]}  Kh8 {[%clk 0:31:39]} 54. c5 {[%clk 0:21:51]}  Rc2+ {[%clk 0:20:09]}
55. Ke3 {[%clk 0:21:05]}  Rc4 {[%clk 0:20:35]} 56. c6 {[%clk 0:20:38]}  Rc2 {[%clk 0:20:55]} 57. Rc8+ {[%clk 0:19:24]}  Kxh7 {[%clk 0:21:20]}
58. Kxe4 {[%clk 0:19:51]}  Rxf2 {[%clk 0:21:43]} 59. Ke5 {[%clk 0:19:19]}  Rd2 {[%clk 0:21:44]} 60. Rf8 {[%clk 0:19:06]} 1-0

[Event "2026 European Womens Championship"]
[Site "Batumi, GE"]
[Date "2026.05.28"]
[Round "4"]
[White "Gaponenko, Inna"]
[Black "Skvortsova, Alena"]
[Result "1/2-1/2"]
[Board "27"]
[TimeControl "5400+30"]
[WhiteFideId "14101181"]
[BlackFideId "24166251"]
[WhiteElo "2331"]
[BlackElo "2135"]
[WhiteTitle "IM"]
[BlackTitle "WFM"]
[WhiteClock "0:39:36"]
[BlackClock "0:30:09"]
[Variant "Standard"]

1. e4 {[%clk 1:30:56]}  c5 {[%clk 1:30:52]} 2. Nf3 {[%clk 1:31:20]}  Nc6 {[%clk 1:31:15]} 3. d4 {[%clk 1:31:41]}  cxd4 {[%clk 1:31:37]}
4. Nxd4 {[%clk 1:32:06]}  Nf6 {[%clk 1:31:54]} 5. Nc3 {[%clk 1:32:27]}  e5 {[%clk 1:32:14]} 6. Ndb5 {[%clk 1:32:49]}  d6 {[%clk 1:32:36]}
7. Bg5 {[%clk 1:32:37]}  a6 {[%clk 1:32:51]} 8. Na3 {[%clk 1:33:02]}  b5 {[%clk 1:33:07]} 9. Nd5 {[%clk 1:32:58]}  Be7 {[%clk 1:33:26]}
10. Bxf6 {[%clk 1:33:22]}  Bxf6 {[%clk 1:33:49]} 11. c4 {[%clk 1:33:41]}  b4 {[%clk 1:34:02]} 12. Nc2 {[%clk 1:34:07]}  O-O {[%clk 1:33:53]}
13. g3 {[%clk 1:34:25]}  Bg5 {[%clk 1:27:51]} 14. Bg2 {[%clk 1:33:24]}  Qa5 {[%clk 1:23:01]} 15. O-O {[%clk 1:18:32]}  Qc5 {[%clk 1:23:16]}
16. b3 {[%clk 1:18:20]}  Rb8 {[%clk 1:14:46]} 17. Qd3 {[%clk 1:07:10]}  Rb7 {[%clk 0:55:46]} 18. a3 {[%clk 0:55:42]}  a5 {[%clk 0:49:49]}
19. axb4 {[%clk 0:56:03]}  axb4 {[%clk 0:49:53]} 20. Ra8 {[%clk 0:56:16]}  Be6 {[%clk 0:48:37]} 21. Rxf8+ {[%clk 0:50:38]}  Kxf8 {[%clk 0:49:01]}
22. Ra1 {[%clk 0:50:58]}  g6 {[%clk 0:37:30]} 23. h4 {[%clk 0:39:10]}  Bd8 {[%clk 0:37:42]} 24. Ra8 {[%clk 0:39:04]}  Kg7 {[%clk 0:35:48]}
25. Qf3 {[%clk 0:35:15]}  Ra7 {[%clk 0:23:04]} 26. Rxa7 {[%clk 0:30:26]}  Qxa7 {[%clk 0:23:28]} 27. Ndxb4 {[%clk 0:29:47]}  Nxb4 {[%clk 0:21:35]}
28. Nxb4 {[%clk 0:30:15]}  Qa1+ {[%clk 0:19:50]} 29. Bf1 {[%clk 0:14:58]}  Bb6 {[%clk 0:12:19]} 30. Nd5 {[%clk 0:13:58]}  Bxd5 {[%clk 0:11:37]}
31. cxd5 {[%clk 0:13:52]}  h5 {[%clk 0:10:46]} 32. Kg2 {[%clk 0:14:06]}  Qd4 {[%clk 0:10:28]} 33. Bb5 {[%clk 0:14:15]}  Kf8 {[%clk 0:08:58]}
34. Bd7 {[%clk 0:13:27]}  Ke7 {[%clk 0:09:06]} 35. Bh3 {[%clk 0:13:41]}  Qd2 {[%clk 0:07:50]} 36. g4 {[%clk 0:12:33]}  hxg4 {[%clk 0:07:59]}
37. Bxg4 {[%clk 0:13:01]}  Qf4 {[%clk 0:04:29]} 38. Qxf4 {[%clk 0:10:54]}  exf4 {[%clk 0:04:55]} 39. h5 {[%clk 0:11:22]}  gxh5 {[%clk 0:05:12]}
40. Bxh5 {[%clk 0:11:48]}  Bd4 {[%clk 0:02:56]} 41. Kf3 {[%clk 0:12:03]}  Kf6 {[%clk 0:01:59]} 42. Ke2 {[%clk 0:08:35]}  Ke7 {[%clk 0:29:22]}
43. f3 {[%clk 0:37:54]}  f6 {[%clk 0:29:37]} 44. Kd3 {[%clk 0:38:19]}  Bf2 {[%clk 0:29:29]} 45. Kc4 {[%clk 0:38:26]}  Kd7 {[%clk 0:29:54]}
46. Kb5 {[%clk 0:38:48]}  Kc7 {[%clk 0:30:17]} 47. b4 {[%clk 0:39:03]}  Bg1 {[%clk 0:29:53]} 48. Ka6 {[%clk 0:39:20]}  Bf2 {[%clk 0:30:09]}
49. b5 {[%clk 0:39:36]} 1/2-1/2

[Event "2026 European Womens Championship"]
[Site "Batumi, GE"]
[Date "2026.05.28"]
[Round "4"]
[White "Tirpan, Ceren"]
[Black "Khukhashvili, Sopiko"]
[Result "1/2-1/2"]
[Board "28"]
[TimeControl "5400+30"]
[WhiteFideId "26385309"]
[BlackFideId "13602055"]
[WhiteElo "2209"]
[BlackElo "2329"]
[WhiteTitle "WFM"]
[BlackTitle "IM"]
[WhiteClock "0:20:21"]
[BlackClock "0:17:18"]
[Variant "Standard"]

1. c4 {[%clk 1:30:58]}  Nf6 {[%clk 1:30:31]} 2. Nc3 {[%clk 1:31:22]}  e6 {[%clk 1:30:43]} 3. e4 {[%clk 1:31:47]}  d5 {[%clk 1:30:56]}
4. cxd5 {[%clk 1:32:10]}  exd5 {[%clk 1:31:23]} 5. e5 {[%clk 1:32:32]}  Ne4 {[%clk 1:29:45]} 6. Nf3 {[%clk 1:32:53]}  Bf5 {[%clk 1:27:58]}
7. d3 {[%clk 1:33:07]}  Nxc3 {[%clk 1:27:17]} 8. bxc3 {[%clk 1:33:28]}  c5 {[%clk 1:27:25]} 9. d4 {[%clk 1:32:07]}  c4 {[%clk 1:27:37]}
10. a4 {[%clk 1:28:34]}  Nc6 {[%clk 1:27:12]} 11. Be2 {[%clk 1:26:30]}  Be7 {[%clk 1:24:17]} 12. O-O {[%clk 1:16:13]}  O-O {[%clk 1:24:15]}
13. Ne1 {[%clk 1:04:50]}  Na5 {[%clk 1:17:24]} 14. Nc2 {[%clk 0:55:11]}  Nb3 {[%clk 1:12:10]} 15. Ra2 {[%clk 0:54:52]}  f6 {[%clk 1:05:07]}
16. exf6 {[%clk 0:40:36]}  Bxf6 {[%clk 1:03:44]} 17. Ne3 {[%clk 0:40:11]}  Be6 {[%clk 1:03:45]} 18. Bg4 {[%clk 0:37:45]}  Bf7 {[%clk 1:03:12]}
19. Ba3 {[%clk 0:27:51]}  Be7 {[%clk 0:59:19]} 20. Bxe7 {[%clk 0:27:13]}  Qxe7 {[%clk 0:59:47]} 21. Re1 {[%clk 0:27:34]}  Qd6 {[%clk 0:56:41]}
22. Nf5 {[%clk 0:24:41]}  Qf6 {[%clk 0:53:34]} 23. Ne7+ {[%clk 0:21:58]}  Kh8 {[%clk 0:54:01]} 24. Bf3 {[%clk 0:22:18]}  Rad8 {[%clk 0:46:47]}
25. Re5 {[%clk 0:14:50]}  Qb6 {[%clk 0:39:34]} 26. Rae2 {[%clk 0:09:32]}  Qa5 {[%clk 0:38:36]} 27. Qe1 {[%clk 0:05:27]}  Qxa4 {[%clk 0:34:33]}
28. Nxd5 {[%clk 0:05:49]}  Qa3 {[%clk 0:34:42]} 29. Nb4 {[%clk 0:04:50]}  Nc1 {[%clk 0:31:27]} 30. Rc2 {[%clk 0:04:54]}  Nd3 {[%clk 0:26:01]}
31. Nxd3 {[%clk 0:05:18]}  cxd3 {[%clk 0:26:27]} 32. Rc1 {[%clk 0:05:47]}  Qb2 {[%clk 0:23:57]} 33. Rb1 {[%clk 0:06:05]}  Qa2 {[%clk 0:22:55]}
34. Ra1 {[%clk 0:06:16]}  d2 {[%clk 0:20:05]} 35. Qb1 {[%clk 0:05:57]}  Qc4 {[%clk 0:12:53]} 36. Qb2 {[%clk 0:03:34]}  b5 {[%clk 0:06:41]}
37. Qxd2 {[%clk 0:02:39]}  b4 {[%clk 0:06:41]} 38. cxb4 {[%clk 0:03:04]}  Rxd4 {[%clk 0:06:16]} 39. Qe1 {[%clk 0:03:28]}  a6 {[%clk 0:04:23]}
40. h3 {[%clk 0:03:34]}  Bg6 {[%clk 0:01:34]} 41. Rc5 {[%clk 0:02:12]}  Qxb4 {[%clk 0:24:01]} 42. Qxb4 {[%clk 0:29:22]}  Rxb4 {[%clk 0:23:38]}
43. Rxa6 {[%clk 0:29:15]}  Be4 {[%clk 0:23:47]} 44. Bxe4 {[%clk 0:28:12]}  Rxe4 {[%clk 0:23:39]} 45. Ra7 {[%clk 0:28:25]}  Re1+ {[%clk 0:22:35]}
46. Kh2 {[%clk 0:28:47]}  Re6 {[%clk 0:22:10]} 47. Rcc7 {[%clk 0:29:00]}  Rg6 {[%clk 0:22:28]} 48. Rf7 {[%clk 0:27:02]}  Kg8 {[%clk 0:21:36]}
49. Rxf8+ {[%clk 0:27:23]}  Kxf8 {[%clk 0:22:05]} 50. f4 {[%clk 0:27:38]}  Rb6 {[%clk 0:22:06]} 51. Kg3 {[%clk 0:27:51]}  Kg8 {[%clk 0:21:04]}
52. Rc7 {[%clk 0:26:41]}  Ra6 {[%clk 0:21:19]} 53. h4 {[%clk 0:26:54]}  Ra5 {[%clk 0:19:40]} 54. Kg4 {[%clk 0:26:34]}  h5+ {[%clk 0:18:03]}
55. Kh3 {[%clk 0:26:07]}  Ra3+ {[%clk 0:17:43]} 56. g3 {[%clk 0:26:31]}  g6 {[%clk 0:16:44]} 57. Kg2 {[%clk 0:22:33]}  Ra2+ {[%clk 0:16:53]}
58. Kf3 {[%clk 0:20:41]}  Ra3+ {[%clk 0:16:38]} 59. Ke4 {[%clk 0:18:25]}  Rxg3 {[%clk 0:17:01]} 60. Ke5 {[%clk 0:18:53]}  Rg4 {[%clk 0:17:21]}
61. Kf6 {[%clk 0:19:11]}  Rxf4+ {[%clk 0:16:31]} 62. Kxg6 {[%clk 0:19:33]}  Rg4+ {[%clk 0:16:52]} 63. Kxh5 {[%clk 0:19:59]}  Rg7 {[%clk 0:17:18]}
64. Rxg7+ {[%clk 0:20:21]} 1/2-1/2

[Event "2026 European Womens Championship"]
[Site "Batumi, GE"]
[Date "2026.05.28"]
[Round "4"]
[White "Rodriguez Redondo, Adhara"]
[Black "Iglesias, Yosha"]
[Result "0-1"]
[Board "29"]
[TimeControl "5400+30"]
[WhiteFideId "32065698"]
[BlackFideId "637823"]
[WhiteElo "2200"]
[BlackElo "2325"]
[WhiteTitle "WFM"]
[BlackTitle "FM"]
[WhiteClock "0:01:35"]
[BlackClock "0:18:32"]
[Variant "Standard"]

1. e4 {[%clk 1:30:57]}  c6 {[%clk 1:30:54]} 2. d4 {[%clk 1:31:16]}  d5 {[%clk 1:31:18]} 3. e5 {[%clk 1:31:42]}  c5 {[%clk 1:30:09]}
4. dxc5 {[%clk 1:32:01]}  e6 {[%clk 1:30:30]} 5. Nf3 {[%clk 1:32:17]}  Bxc5 {[%clk 1:29:38]} 6. Bd3 {[%clk 1:32:41]}  Nc6 {[%clk 1:24:18]}
7. O-O {[%clk 1:32:44]}  Nge7 {[%clk 1:24:43]} 8. Nbd2 {[%clk 1:30:24]}  Ng6 {[%clk 1:21:22]} 9. Nb3 {[%clk 1:30:03]}  Bb6 {[%clk 1:20:37]}
10. Re1 {[%clk 1:24:19]}  O-O {[%clk 1:16:47]} 11. c3 {[%clk 1:04:30]}  Bc7 {[%clk 1:16:03]} 12. Bxg6 {[%clk 1:00:04]}  fxg6 {[%clk 1:16:26]}
13. Nbd4 {[%clk 0:50:43]}  Bd7 {[%clk 1:03:44]} 14. b3 {[%clk 0:46:29]}  Nxd4 {[%clk 0:54:51]} 15. Nxd4 {[%clk 0:46:25]}  Qh4 {[%clk 0:53:05]}
16. Qe2 {[%clk 0:33:29]}  Rac8 {[%clk 0:50:59]} 17. Ba3 {[%clk 0:26:48]}  Rf7 {[%clk 0:50:50]} 18. Nf3 {[%clk 0:22:32]}  Qh5 {[%clk 0:49:48]}
19. Bd6 {[%clk 0:17:57]}  Bb6 {[%clk 0:47:38]} 20. Rac1 {[%clk 0:17:13]}  h6 {[%clk 0:42:19]} 21. Rc2 {[%clk 0:14:47]}  a6 {[%clk 0:38:54]}
22. a4 {[%clk 0:14:24]}  d4 {[%clk 0:34:05]} 23. Nxd4 {[%clk 0:11:27]}  Bxd4 {[%clk 0:34:08]} 24. cxd4 {[%clk 0:11:45]}  Rxc2 {[%clk 0:34:23]}
25. Qxc2 {[%clk 0:12:09]}  Bc6 {[%clk 0:34:47]} 26. Re3 {[%clk 0:07:42]}  Qg4 {[%clk 0:33:40]} 27. Rg3 {[%clk 0:05:54]}  Qxd4 {[%clk 0:33:24]}
28. h3 {[%clk 0:05:23]}  g5 {[%clk 0:33:13]} 29. b4 {[%clk 0:02:41]}  Qa1+ {[%clk 0:29:53]} 30. Kh2 {[%clk 0:03:07]}  Qxa4 {[%clk 0:29:05]}
31. Qxa4 {[%clk 0:03:31]}  Bxa4 {[%clk 0:29:31]} 32. Kg1 {[%clk 0:02:44]}  Rf4 {[%clk 0:29:13]} 33. Rd3 {[%clk 0:01:45]}  Re4 {[%clk 0:28:03]}
34. Rf3 {[%clk 0:01:35]}  Bc6 {[%clk 0:25:20]} 35. Rf8+ {[%clk 0:01:32]}  Kh7 {[%clk 0:25:46]} 36. Rf7 {[%clk 0:01:30]}  Kg6 {[%clk 0:25:57]}
37. Rf8 {[%clk 0:00:38]}  Rf4 {[%clk 0:20:15]} 38. Kf1 {[%clk 0:00:35]}  Bb5+ {[%clk 0:18:31]} 39. Kg1 {[%clk 0:00:41]}  Rxf8 {[%clk 0:13:39]}
40. Bxf8 {[%clk 0:01:05]}  Kf7 {[%clk 0:13:58]} 41. Bc5 {[%clk 0:29:27]}  Ke8 {[%clk 0:43:03]} 42. f3 {[%clk 0:25:08]}  g6 {[%clk 0:40:40]}
43. Kf2 {[%clk 0:24:36]}  Kd7 {[%clk 0:39:54]} 44. Bf8 {[%clk 0:11:05]}  h5 {[%clk 0:40:14]} 45. Bh6 {[%clk 0:10:42]}  g4 {[%clk 0:36:38]}
46. hxg4 {[%clk 0:10:27]}  hxg4 {[%clk 0:37:03]} 47. fxg4 {[%clk 0:09:06]}  Kc6 {[%clk 0:36:21]} 48. Ke3 {[%clk 0:07:58]}  Kd5 {[%clk 0:35:29]}
49. Bg7 {[%clk 0:07:26]}  Bf1 {[%clk 0:17:09]} 50. Bf6 {[%clk 0:04:09]}  Bxg2 {[%clk 0:15:17]} 51. g5 {[%clk 0:01:55]}  Kc4 {[%clk 0:15:30]}
52. Be7 {[%clk 0:02:20]}  Kc3 {[%clk 0:15:24]} 53. Bc5 {[%clk 0:01:43]}  Bh3 {[%clk 0:15:37]} 54. Ke2 {[%clk 0:01:24]}  Bg4+ {[%clk 0:16:02]}
55. Ke3 {[%clk 0:01:34]}  Bd1 {[%clk 0:15:57]} 56. Ke4 {[%clk 0:01:12]}  Kc4 {[%clk 0:15:55]} 57. Bd6 {[%clk 0:00:51]}  Bc2 {[%clk 0:14:19]}
58. Ke3 {[%clk 0:01:14]}  Bb1 {[%clk 0:14:19]} 59. Kd2 {[%clk 0:01:24]}  Kd4 {[%clk 0:14:27]} 60. Kc1 {[%clk 0:00:33]}  Ba2 {[%clk 0:14:33]}
61. Kd2 {[%clk 0:00:40]}  Bd5 {[%clk 0:14:40]} 62. Ke2 {[%clk 0:00:34]}  Ke4 {[%clk 0:15:01]} 63. Kf2 {[%clk 0:00:33]}  Kf4 {[%clk 0:15:27]}
64. Be7 {[%clk 0:00:38]}  Kxe5 {[%clk 0:15:48]} 65. Ke3 {[%clk 0:01:05]}  Bc6 {[%clk 0:15:56]} 66. Bf6+ {[%clk 0:00:57]}  Kf5 {[%clk 0:15:25]}
67. Be7 {[%clk 0:00:56]}  e5 {[%clk 0:15:45]} 68. Bd8 {[%clk 0:01:03]}  Ke6 {[%clk 0:16:08]} 69. Bf6 {[%clk 0:00:59]}  Kd5 {[%clk 0:16:33]}
70. Be7 {[%clk 0:01:12]}  Bd7 {[%clk 0:16:57]} 71. Bd8 {[%clk 0:01:16]}  Bf5 {[%clk 0:17:23]} 72. Bf6 {[%clk 0:01:24]}  e4 {[%clk 0:17:37]}
73. Bc3 {[%clk 0:00:35]}  Kc4 {[%clk 0:17:52]} 74. Be1 {[%clk 0:00:36]}  b6 {[%clk 0:17:50]} 75. Bd2 {[%clk 0:00:53]}  Kb5 {[%clk 0:17:29]}
76. Kd4 {[%clk 0:00:49]}  a5 {[%clk 0:17:55]} 77. bxa5 {[%clk 0:01:13]}  bxa5 {[%clk 0:18:21]} 78. Kc3 {[%clk 0:00:37]}  a4 {[%clk 0:17:52]}
79. Bc1 {[%clk 0:00:35]}  Kc5 {[%clk 0:18:13]} 80. Be3+ {[%clk 0:00:50]}  Kd5 {[%clk 0:18:39]} 81. Kb4 {[%clk 0:00:33]}  Bd7 {[%clk 0:19:03]}
82. Kc3 {[%clk 0:00:54]}  Ke5 {[%clk 0:19:12]} 83. Bc1 {[%clk 0:01:13]}  Bc6 {[%clk 0:18:13]} 84. Kc4 {[%clk 0:01:06]}  Bd5+ {[%clk 0:16:55]}
85. Kc3 {[%clk 0:01:10]}  Kf5 {[%clk 0:16:53]} 86. Kd4 {[%clk 0:01:16]}  Bb7 {[%clk 0:17:18]} 87. Kc3 {[%clk 0:00:49]}  Kg4 {[%clk 0:17:38]}
88. Kd4 {[%clk 0:00:32]}  Kf3 {[%clk 0:18:03]} 89. Ba3 {[%clk 0:00:32]}  e3 {[%clk 0:18:26]} 90. Kd3 {[%clk 0:00:58]}  e2 {[%clk 0:17:46]}
91. Kd2 {[%clk 0:01:09]}  Kf2 {[%clk 0:18:06]} 92. Bc5 {[%clk 0:01:35]}  Kf1 {[%clk 0:18:32]} 0-1

[Event "2026 European Womens Championship"]
[Site "Batumi, GE"]
[Date "2026.05.28"]
[Round "4"]
[White "Olde, Margareth"]
[Black "Avramidou, Anastasia"]
[Result "1/2-1/2"]
[Board "30"]
[TimeControl "5400+30"]
[WhiteFideId "4503082"]
[BlackFideId "4239873"]
[WhiteElo "2194"]
[BlackElo "2320"]
[WhiteTitle "WIM"]
[BlackTitle "FM"]
[WhiteClock "0:18:01"]
[BlackClock "0:55:06"]
[Variant "Standard"]

1. d4 {[%clk 1:30:58]}  Nf6 {[%clk 1:30:47]} 2. c4 {[%clk 1:31:18]}  e6 {[%clk 1:31:02]} 3. Nf3 {[%clk 1:31:25]}  d5 {[%clk 1:31:18]}
4. g3 {[%clk 1:31:06]}  dxc4 {[%clk 1:31:22]} 5. Bg2 {[%clk 1:31:21]}  Bb4+ {[%clk 1:31:40]} 6. Bd2 {[%clk 1:30:51]}  a5 {[%clk 1:31:57]}
7. Qc1 {[%clk 1:25:07]}  Bxd2+ {[%clk 1:31:57]} 8. Qxd2 {[%clk 1:24:41]}  c6 {[%clk 1:31:58]} 9. a4 {[%clk 1:23:38]}  b5 {[%clk 1:32:01]}
10. axb5 {[%clk 1:23:35]}  cxb5 {[%clk 1:32:24]} 11. Qg5 {[%clk 1:23:11]}  O-O {[%clk 1:32:35]} 12. Qxb5 {[%clk 1:23:22]}  Ba6 {[%clk 1:32:58]}
13. Qxa5 {[%clk 1:10:52]}  Bb7 {[%clk 1:33:19]} 14. Qxd8 {[%clk 1:11:16]}  Rxa1 {[%clk 1:33:43]} 15. Qxf8+ {[%clk 1:11:40]}  Kxf8 {[%clk 1:34:08]}
16. O-O {[%clk 1:10:59]}  Ra2 {[%clk 1:34:31]} 17. Ne5 {[%clk 1:02:26]}  Ba6 {[%clk 1:34:54]} 18. Rc1 {[%clk 0:58:54]}  Rxb2 {[%clk 1:32:07]}
19. Na3 {[%clk 0:57:13]}  Nbd7 {[%clk 1:21:16]} 20. Naxc4 {[%clk 0:54:26]}  Bxc4 {[%clk 1:13:19]} 21. Nxc4 {[%clk 0:40:30]}  Rxe2 {[%clk 1:13:32]}
22. Bf3 {[%clk 0:39:43]}  Ra2 {[%clk 1:13:31]} 23. h4 {[%clk 0:36:19]}  h5 {[%clk 1:05:18]} 24. Ne5 {[%clk 0:27:58]}  g6 {[%clk 1:02:38]}
25. Rc8+ {[%clk 0:25:37]}  Kg7 {[%clk 1:02:33]} 26. Rc7 {[%clk 0:19:24]}  Nxe5 {[%clk 0:55:21]} 27. dxe5 {[%clk 0:19:49]}  Ng8 {[%clk 0:55:42]}
28. Bg2 {[%clk 0:18:23]}  Ra5 {[%clk 0:54:08]} 29. f4 {[%clk 0:18:25]}  Ra1+ {[%clk 0:54:18]} 30. Kf2 {[%clk 0:18:35]}  Ra2+ {[%clk 0:54:43]}
31. Kg1 {[%clk 0:18:01]}  Ra1+ {[%clk 0:55:06]} 1/2-1/2

[Event "2026 European Womens Championship"]
[Site "Batumi, GE"]
[Date "2026.05.28"]
[Round "4"]
[White "Peycheva, Gergana"]
[Black "Sliwicka, Alicja"]
[Result "0-1"]
[Board "31"]
[TimeControl "5400+30"]
[WhiteFideId "2916711"]
[BlackFideId "1150677"]
[WhiteElo "2186"]
[BlackElo "2315"]
[WhiteTitle "FM"]
[BlackTitle "WGM"]
[WhiteClock "0:00:32"]
[BlackClock "0:16:55"]
[Variant "Standard"]

1. d4 {[%clk 1:30:56]}  d5 {[%clk 1:30:54]} 2. c4 {[%clk 1:29:31]}  e6 {[%clk 1:31:14]} 3. Nc3 {[%clk 1:28:49]}  h6 {[%clk 1:31:35]}
4. Nf3 {[%clk 1:25:35]}  Nf6 {[%clk 1:31:56]} 5. cxd5 {[%clk 1:20:16]}  exd5 {[%clk 1:32:16]} 6. Bf4 {[%clk 1:17:46]}  Bd6 {[%clk 1:32:37]}
7. Bxd6 {[%clk 1:11:30]}  Qxd6 {[%clk 1:33:01]} 8. e3 {[%clk 1:11:38]}  Bf5 {[%clk 1:19:01]} 9. Bd3 {[%clk 0:59:29]}  Bxd3 {[%clk 1:15:26]}
10. Qxd3 {[%clk 0:59:51]}  c6 {[%clk 1:13:25]} 11. O-O {[%clk 0:55:33]}  O-O {[%clk 1:10:09]} 12. Ne5 {[%clk 0:47:28]}  Nbd7 {[%clk 1:04:45]}
13. Nxd7 {[%clk 0:41:28]}  Nxd7 {[%clk 0:59:50]} 14. a3 {[%clk 0:38:19]}  a5 {[%clk 0:57:20]} 15. Rfe1 {[%clk 0:35:38]}  Rfd8 {[%clk 0:44:53]}
16. Rad1 {[%clk 0:31:49]}  b5 {[%clk 0:35:16]} 17. e4 {[%clk 0:22:33]}  dxe4 {[%clk 0:31:01]} 18. Nxe4 {[%clk 0:22:25]}  Qg6 {[%clk 0:29:42]}
19. h3 {[%clk 0:09:39]}  Nf6 {[%clk 0:26:16]} 20. Nxf6+ {[%clk 0:08:05]}  Qxf6 {[%clk 0:26:44]} 21. Re4 {[%clk 0:06:44]}  Rd5 {[%clk 0:24:43]}
22. Qe3 {[%clk 0:04:08]}  a4 {[%clk 0:22:23]} 23. g3 {[%clk 0:03:33]}  Rad8 {[%clk 0:22:07]} 24. h4 {[%clk 0:03:36]}  h5 {[%clk 0:11:02]}
25. b4 {[%clk 0:02:52]}  axb3 {[%clk 0:11:06]} 26. Qxb3 {[%clk 0:00:42]}  Rxd4 {[%clk 0:09:37]} 27. Rdxd4 {[%clk 0:00:40]}  Rxd4 {[%clk 0:10:01]}
28. Re8+ {[%clk 0:00:42]}  Kh7 {[%clk 0:10:30]} 29. Re3 {[%clk 0:00:58]}  Qg6 {[%clk 0:08:50]} 30. Kh2 {[%clk 0:00:50]}  Rc4 {[%clk 0:06:30]}
31. Qd1 {[%clk 0:00:56]}  Rc5 {[%clk 0:05:55]} 32. Kg2 {[%clk 0:00:39]}  Qc2 {[%clk 0:05:20]} 33. Qd4 {[%clk 0:00:33]}  Rd5 {[%clk 0:05:02]}
34. Qa7 {[%clk 0:00:38]}  Rf5 {[%clk 0:04:58]} 35. Re1 {[%clk 0:00:37]}  c5 {[%clk 0:05:00]} 36. Rf1 {[%clk 0:01:03]}  Qe4+ {[%clk 0:03:41]}
37. Kg1 {[%clk 0:01:21]}  Qd4 {[%clk 0:03:27]} 38. Kg2 {[%clk 0:00:47]}  Qd5+ {[%clk 0:02:44]} 39. Kg1 {[%clk 0:01:00]}  Rf3 {[%clk 0:01:54]}
40. Qa5 {[%clk 0:00:34]}  c4 {[%clk 0:00:38]} 41. a4 {[%clk 0:19:49]}  Rb3 {[%clk 0:26:50]} 42. axb5 {[%clk 0:19:50]}  Rxb5 {[%clk 0:27:04]}
43. Qc3 {[%clk 0:13:02]}  Rb3 {[%clk 0:26:34]} 44. Qc2+ {[%clk 0:12:11]}  Rd3 {[%clk 0:22:09]} 45. Rc1 {[%clk 0:04:43]}  g6 {[%clk 0:21:56]}
46. Qe2 {[%clk 0:02:32]}  c3 {[%clk 0:20:56]} 47. Kh2 {[%clk 0:00:44]}  Qd4 {[%clk 0:20:31]} 48. Kg2 {[%clk 0:00:42]}  Kg7 {[%clk 0:20:33]}
49. Re1 {[%clk 0:00:33]}  c2 {[%clk 0:18:33]} 50. Rf1 {[%clk 0:00:37]}  Rd2 {[%clk 0:16:55]} 51. Qe7 {[%clk 0:00:31]}  Rd1 {[%clk 0:16:49]}
52. Qc7 {[%clk 0:00:32]}  Rxf1 {[%clk 0:16:55]} 0-1